fUSD/lending_fUSD_20250624
["ID","MTS","AMOUNT","RATE_DAILY","PERIOD"]
[367274240,1750725050062,-490.0,0.00021917,2]
[367274242,1750725050071,-521.58,0.00021917,2]
[367274244,1750725050079,-490.0,0.00021917,2]
[367274246,1750725050088,-1106.32,0.00021917,2]
[367274248,1750725050097,-490.0,0.00021917,2]
[367274250,1750725050107,-490.0,0.00021917,2]
[367274252,1750725050116,-490.0,0.00021917,2]
[367274253,1750725050124,-570.24,0.00021917,2]
[367274256,1750725050134,-490.0,0.00021917,2]
[367274258,1750725050143,-1054.96,0.00021917,2]
[367274260,1750725050152,-1616.89,0.00021917,2]
[367274262,1750725050162,-833.0,0.00021917,2]
[367274264,1750725050171,-833.0,0.00021917,2]
[367274266,1750725050180,-2307.56,0.00021917,2]
[367274268,1750725050189,-490.0,0.00021917,2]
[367274270,1750725050198,-490.0,0.00021917,2]
[367274272,1750725050207,-911.23,0.00021917,2]
[367274274,1750725050216,-490.0,0.00021917,2]
[367274276,1750725050228,-490.0,0.00021917,2]
[367274278,1750725050237,-490.0,0.00021917,2]
[367274280,1750725050250,-490.0,0.00021917,2]
[367274282,1750725050259,-490.0,0.00021917,2]
[367274284,1750725050269,-490.0,0.00021917,2]
[367274286,1750725050278,-1053.78,0.00021917,2]
[367274288,1750725050287,-490.0,0.00021917,2]
[367274290,1750725050296,-490.0,0.00021917,2]
[367274292,1750725050305,-490.0,0.00021917,2]
[367274294,1750725050314,-490.0,0.00021917,2]
[367274296,1750725050324,-4766.35,0.00021917,2]
[367274298,1750725050333,-534.48,0.00021917,2]
[367274300,1750725050342,-574.9,0.00021917,2]
[367274302,1750725050351,-1018.25,0.00021917,2]
[367274304,1750725050360,-490.0,0.00021917,2]
[367274306,1750725050370,-553.45,0.00021917,2]
[367274308,1750725050379,-490.0,0.00021917,2]
[367274310,1750725050388,-490.0,0.00021917,2]
[367274312,1750725050397,-490.0,0.00021917,2]
[367274314,1750725050406,-490.0,0.00021917,2]
[367274315,1750725050416,-490.0,0.00021917,2]
[367274316,1750725050425,-490.0,0.00021917,2]
[367274317,1750725050435,-1243.12,0.00021917,2]
[367274318,1750725050444,-490.0,0.00021917,2]
[367274319,1750725050453,-490.0,0.00021917,2]
[367274320,1750725050462,-490.0,0.00021917,2]
[367274321,1750725050472,-490.0,0.00021917,2]
[367274322,1750725050481,-557.59,0.00021917,2]
[367274324,1750725050491,-930.61,0.00021917,2]
[367274326,1750725050500,-490.0,0.00021917,2]
[367274328,1750725050509,-490.0,0.00021917,2]
[367274330,1750725050517,-490.0,0.00021917,2]
[367274332,1750725050526,-490.0,0.00021917,2]
[367274334,1750725050535,-498.54,0.00021917,2]
[367274336,1750725050545,-492.87694799,0.00021917,2]
[367274338,1750725050554,-559.19,0.00021917,2]
[367274340,1750725050563,-524.41,0.00021917,2]
[367274342,1750725050573,-490.0,0.00021917,2]
[367274344,1750725050583,-594.88,0.00021917,2]
[367274346,1750725050592,-492.73661625,0.00021917,2]
[367274348,1750725050601,-490.0,0.00021917,2]
[367274350,1750725050610,-1077.0,0.00021917,2]
[367274352,1750725050620,-585.45,0.00021917,2]
[367274354,1750725050629,-1769.09,0.00021917,2]
[367274356,1750725050639,-490.0,0.00021917,2]
[367274358,1750725050648,-490.0,0.00021917,2]
[367274360,1750725050658,-490.0,0.00021917,2]
[367274362,1750725050667,-490.0,0.00021917,2]
[367274364,1750725050677,-490.0,0.00021917,2]
[367274366,1750725050686,-490.0,0.00021917,2]
[367274368,1750725050695,-490.0,0.00021917,2]
[367274370,1750725050705,-490.0,0.00021917,2]
[367274372,1750725050714,-493.77,0.00021917,2]
[367274374,1750725050723,-1180.98,0.00021917,2]
[367274376,1750725050732,-833.74,0.00021917,2]
[367274378,1750725050741,-643.64,0.00021917,2]
[367274380,1750725050751,-678.59,0.00021917,2]
[367274382,1750725050760,-490.0,0.00021917,2]
[367274384,1750725050770,-490.0,0.00021917,2]
[367274386,1750725050780,-462.86586575,0.00021917,2]
[367274388,1750725050789,-490.0,0.00021917,2]
[367274390,1750725050799,-490.0,0.00021917,2]
[367274392,1750725050809,-490.0,0.00021917,2]
[367274394,1750725050822,-490.0,0.00021917,2]
[367274396,1750725050831,-550.23,0.00021917,2]
[367274398,1750725050842,-490.0,0.00021917,2]
[367274401,1750725050851,-490.0,0.00021917,2]
[367274403,1750725050861,-1749.2,0.00021917,2]
[367274405,1750725050870,-490.0,0.00021917,2]
[367274407,1750725050880,-1410.86,0.00021917,2]
[367274409,1750725050889,-490.0,0.00021917,2]
[367274411,1750725050898,-490.0,0.00021917,2]
[367274413,1750725050909,-1028.06,0.00021917,2]
[367274415,1750725050918,-490.0,0.00021917,2]
[367274417,1750725050928,-490.0,0.00021917,2]
[367274419,1750725050937,-443.57677832,0.00021917,2]
[367274421,1750725050946,-11953.75,0.00021917,2]
[367274423,1750725050955,-490.0,0.00021917,2]
[367274425,1750725050964,-490.0,0.00021917,2]
[367274427,1750725050973,-490.0,0.00021917,2]
[367274429,1750725050982,-490.0,0.00021917,2]
[367274431,1750725050992,-490.0,0.00021917,2]
[367274433,1750725051002,-251.89374371,0.00021917,2]
[367274435,1750725051011,-544.63,0.00021917,2]
[367274436,1750725051021,-1270.32,0.00021917,2]
[367274438,1750725051030,-490.0,0.00021917,2]
[367274441,1750725051039,-643.34,0.00021917,2]
[367274443,1750725051048,-490.0,0.00021917,2]
[367274445,1750725051058,-490.0,0.00021917,2]
[367274447,1750725051067,-490.0,0.00021917,2]
[367274449,1750725051076,-490.0,0.00021917,2]
[367274451,1750725051086,-490.0,0.00021917,2]
[367274453,1750725051095,-831.81,0.00021917,2]
[367274455,1750725051104,-490.0,0.00021917,2]
[367274457,1750725051113,-490.0,0.00021917,2]
[367274459,1750725051123,-490.0,0.00021917,2]
[367274461,1750725051132,-490.0,0.00021917,2]
[367274463,1750725051141,-490.0,0.00021917,2]
[367274465,1750725051151,-2179.37,0.00021917,2]
[367274467,1750725051160,-490.0,0.00021917,2]
[367274469,1750725051169,-768.47,0.00021917,2]
[367274471,1750725051179,-490.0,0.00021917,2]
[367274473,1750725051189,-490.0,0.00021917,2]
[367274475,1750725051200,-490.0,0.00021917,2]
[367274477,1750725051208,-621.78,0.00021917,2]
[367274479,1750725051218,-433.06627564,0.00021917,2]
[367274481,1750725051228,-490.0,0.00021917,2]
[367274483,1750725051237,-490.0,0.00021917,2]
[367274485,1750725051247,-754.53,0.00021917,2]
[367274487,1750725051256,-490.0,0.00021917,2]
[367274489,1750725051264,-490.0,0.00021917,2]
[367274491,1750725051274,-490.0,0.00021917,2]
[367274493,1750725051283,-490.0,0.00021917,2]
[367274495,1750725051293,-2002.65,0.00021917,2]
[367274497,1750725051302,-490.0,0.00021917,2]
[367274499,1750725051311,-490.0,0.00021917,2]
[367274501,1750725051320,-490.0,0.00021917,2]
[367274503,1750725051329,-490.0,0.00021917,2]
[367274505,1750725051338,-480.0,0.00021917,2]
[367274507,1750725051347,-490.0,0.00021917,2]
[367274509,1750725051357,-490.0,0.00021917,2]
[367274511,1750725051366,-337.51755283,0.00021917,2]
[367274513,1750725051375,-490.0,0.00021917,2]
[367274515,1750725051385,-490.0,0.00021917,2]
[367274517,1750725051395,-490.0,0.00021917,2]
[367274519,1750725051405,-1100.06,0.00021917,2]
[367274521,1750725051414,-1684.83,0.00021917,2]
[367274523,1750725051423,-490.0,0.00021917,2]
[367274525,1750725051433,-504.56,0.00021917,2]
[367274527,1750725051442,-2459.09,0.00021917,2]
[367274529,1750725051452,-655.25,0.00021917,2]
[367274531,1750725051461,-490.0,0.00021917,2]
[367274533,1750725051470,-490.0,0.00021917,2]
[367274535,1750725051480,-490.0,0.00021917,2]
[367274537,1750725051490,-490.0,0.00021917,2]
[367274539,1750725051500,-490.0,0.00021917,2]
[367274541,1750725051509,-490.0,0.00021917,2]
[367274543,1750725051519,-490.0,0.00021917,2]
[367274545,1750725051528,-465.29176255,0.00021917,2]
[367274547,1750725051538,-644.9,0.00021917,2]
[367274549,1750725051547,-604.11,0.00021917,2]
[367274551,1750725051556,-946.33,0.00021917,2]
[367274553,1750725051566,-490.0,0.00021917,2]
[367274555,1750725051575,-611.46,0.00021917,2]
[367274557,1750725051585,-490.0,0.00021917,2]
[367274559,1750725051594,-490.0,0.00021917,2]
[367274561,1750725051603,-1589.69,0.00021917,2]
[367274563,1750725051612,-611.67,0.00021917,2]
[367274565,1750725051622,-490.0,0.00021917,2]
[367274567,1750725051631,-517.31,0.00021917,2]
[367274569,1750725051641,-838.92,0.00021917,2]
[367274571,1750725051650,-490.0,0.00021917,2]
[367274573,1750725051662,-706.25,0.00021917,2]
[367274575,1750725051671,-741.74,0.00021917,2]
[367274577,1750725051681,-3955.6,0.00021917,2]
[367274579,1750725051690,-490.0,0.00021917,2]
[367274581,1750725051699,-490.0,0.00021917,2]
[367274583,1750725051709,-490.0,0.00021917,2]
[367274585,1750725051718,-627.94,0.00021917,2]
[367274587,1750725051727,-490.0,0.00021917,2]
[367274589,1750725051736,-869.27,0.00021917,2]
[367274591,1750725051746,-661.22,0.00021917,2]
[367274592,1750725051754,-490.0,0.00021917,2]
[367274593,1750725051763,-490.0,0.00021917,2]
[367274594,1750725051773,-490.0,0.00021917,2]
[367274595,1750725051782,-490.0,0.00021917,2]
[367274596,1750725051791,-490.0,0.00021917,2]
[367274597,1750725051800,-490.0,0.00021917,2]
[367274598,1750725051809,-1349.54,0.00021917,2]
[367274599,1750725051821,-537.12,0.00021917,2]
[367274601,1750725051830,-1035.77,0.00021917,2]
[367274603,1750725051839,-490.0,0.00021917,2]
[367274605,1750725051848,-490.0,0.00021917,2]
[367274607,1750725051859,-490.0,0.00021917,2]
[367274609,1750725051868,-675.22,0.00021917,2]
[367274611,1750725051877,-490.0,0.00021917,2]
[367274613,1750725051886,-490.0,0.00021917,2]
[367274615,1750725051896,-490.0,0.00021917,2]
[367274616,1750725051906,-716.53,0.00021917,2]
[367274618,1750725051916,-490.0,0.00021917,2]
[367274620,1750725051926,-4676.72,0.00021917,2]
[367274622,1750725051935,-490.0,0.00021917,2]
[367274624,1750725051944,-878.85,0.00021917,2]
[367274626,1750725051954,-532.66,0.00021917,2]
[367274628,1750725051963,-490.0,0.00021917,2]
[367274630,1750725051972,-490.0,0.00021917,2]
[367274632,1750725051982,-490.0,0.00021917,2]
[367274634,1750725051991,-490.0,0.00021917,2]
[367274636,1750725052001,-490.0,0.00021917,2]
[367274638,1750725052010,-490.0,0.00021917,2]
[367274640,1750725052019,-490.0,0.00021917,2]
[367274642,1750725052029,-5704.34,0.00021917,2]
[367274644,1750725052038,-702.72,0.00021917,2]
[367274646,1750725052048,-490.0,0.00021917,2]
[367274648,1750725052057,-1064.35,0.00021917,2]
[367274650,1750725052066,-2128.65,0.00021917,2]
[367274652,1750725052075,-490.0,0.00021917,2]
[367274654,1750725052084,-490.0,0.00021917,2]
[367274656,1750725052093,-490.0,0.00021917,2]
[367274658,1750725052103,-490.0,0.00021917,2]
[367274660,1750725052112,-490.0,0.00021917,2]
[367274662,1750725052121,-490.0,0.00021917,2]
[367274664,1750725052131,-490.0,0.00021917,2]
[367274666,1750725052139,-490.0,0.00021917,2]
[367274668,1750725052148,-2014.62,0.00021917,2]
[367274670,1750725052157,-490.0,0.00021917,2]
[367274672,1750725052167,-490.0,0.00021917,2]
[367274674,1750725052176,-732.51,0.00021917,2]
[367274676,1750725052185,-490.0,0.00021917,2]
[367274678,1750725052195,-186.08042153,0.00021917,2]
[367274681,1750725052214,-390.91957847,0.00021917,2]
[367274683,1750725052222,-181.92340943,0.00021917,2]
[367274685,1750725052234,-807.1410121,0.00021917,2]
[367274723,1750725052574,-418.78789943,0.00021917,2]
[367274838,1750725101591,203.0,0.00018883,2]
[367274841,1750725171622,686.0,0.0002739,120]
[367274842,1750725172965,564.0,0.0002739,120]
[367274846,1750725239309,253.0,0.0002739,120]
[367274847,1750725292252,688.0,0.0002739,120]
[367274848,1750725314662,512.0,0.0002739,120]
[367274849,1750725329774,256.23824179,0.0002739,120]
[367274870,1750726060306,152.26,0.00013699,2]
[367274874,1750726237146,-202.0,0.00019172,2]
[367274875,1750726237157,-180.0,0.00019875,2]
[367274876,1750726237168,-300.0,0.0002044,2]
[367274877,1750726237180,-4.38084821,0.0002044,2]
[367274878,1750726237193,-295.61915179,0.0002044,2]
[367274879,1750726237202,-263.84404173,0.0002044,2]
[367274880,1750726237214,-836.52012881,0.0002044,2]
[367274881,1750726237226,-99.63582946,0.0002044,2]
[367274882,1750726237235,-150.0,0.00020441,2]
[367274883,1750726237244,-150.0,0.00020441,2]
[367274884,1750726237254,-150.0,0.00020441,2]
[367274885,1750726237263,-150.0,0.00020441,2]
[367274886,1750726237272,-150.0,0.00020441,2]
[367274887,1750726237282,-150.0,0.00020441,2]
[367274888,1750726237291,-150.0,0.00020441,2]
[367274889,1750726237300,-150.0,0.00020441,2]
[367274890,1750726237309,-150.0,0.00020441,2]
[367274891,1750726237319,-1000.0,0.00020651,2]
[367274892,1750726237328,-21673.32,0.00020724,2]
[367274893,1750726237337,-886.2,0.00020756,2]
[367274894,1750726237347,-666.0,0.00020784,2]
[367274896,1750726237356,-150.35,0.00020798,2]
[367274897,1750726237365,-162.81,0.00020846,2]
[367274899,1750726237374,-250.0,0.00020857,2]
[367274901,1750726237384,-275.83,0.00020866,2]
[367274903,1750726237394,-202.0,0.00020873,4]
[367274904,1750726237403,-649.0,0.00021083,2]
[367274905,1750726237412,-166.43,0.00021084,2]
[367274907,1750726237421,-13282.22,0.00021097,2]
[367274908,1750726237431,-857.0,0.00021188,2]
[367274909,1750726237440,-150.0,0.00021198,4]
[367274910,1750726237450,-283.68683666,0.00021226,2]
[367274911,1750726237459,-1925.0,0.00021293,2]
[367274912,1750726237468,-7258.72397172,0.000213,2]
[367274914,1750726237480,-12741.27602828,0.000213,2]
[367274916,1750726237489,-693.72431258,0.00021405,2]
[367274919,1750726237500,-169.28730579,0.00021405,2]
[367274921,1750726237510,-750.0,0.00021561,2]
[367274923,1750726237520,-510.0,0.00021562,2]
[367274925,1750726237529,-245.04,0.00021632,2]
[367274927,1750726237539,-250.0,0.00021659,2]
[367274929,1750726237548,-589.05523455,0.00021659,2]
[367274931,1750726237560,-410.94476545,0.00021659,2]
[367274933,1750726237570,-204.56667955,0.00021686,2]
[367274935,1750726237579,-600.0,0.000217,7]
[367274937,1750726237589,-383.24502399,0.000217,2]
[367274940,1750726237607,-7578.85045061,0.000217,2]
[367274942,1750726237617,-561.20185599,0.00021717,2]
[367274944,1750726237626,-378.05526434,0.00021717,2]
[367274946,1750726237635,-863.01161838,0.00021737,2]
[367274948,1750726237645,-1300.0,0.000218,7]
[367274950,1750726237655,-151.0,0.00021804,2]
[367274952,1750726237664,-200.39464273,0.00021804,2]
[367274954,1750726237675,-151.0,0.00021804,2]
[367274956,1750726237685,-151.0,0.00021804,2]
[367274958,1750726237695,-198.0,0.00021804,2]
[367274960,1750726237704,-315.33,0.00021807,2]
[367274962,1750726237714,-29765.53880558,0.00021817,2]
[367274965,1750726237733,-600.0,0.00021817,2]
[367274970,1750726237763,-775.44931369,0.00021817,2]
[367275163,1750726239725,-548.66066903,0.00021817,2]
[367275176,1750726239832,-1546.99932527,0.00021817,2]
[367275178,1750726239843,-36968.03199477,0.00021817,2]
[367275180,1750726239854,-678.42001266,0.00021817,2]
[367275182,1750726239865,-2093.62099511,0.00021817,2]
[367275184,1750726239875,-12148.77292668,0.00021817,2]
[367275197,1750726239989,-471.2851868,0.00021817,2]
[367275210,1750726240095,-27322.88537041,0.00021817,2]
[367275212,1750726240104,-1000.0,0.00021817,2]
[367275214,1750726240114,-11577.20511219,0.00021817,2]
[367275475,1750726242668,-1304.39904214,0.00021817,2]
[367275794,1750726245747,-2627.08,0.00021065,2]
[367275796,1750726245756,-364.46020994,0.00021817,2]
[367275802,1750726245801,-7780.87458338,0.00021817,2]
[367275809,1750726245856,-9884.89423975,0.00021817,2]
[367276034,1750726817670,152.27,0.00026028,120]
[367276040,1750727044569,152.52,0.00013699,2]
[367276045,1750727346063,1858.63,0.00027397,120]
[367276047,1750727431923,-150.0,0.00020195,2]
[367276048,1750727431933,-177.727059,0.00020195,2]
[367276049,1750727431942,-150.0,0.00020195,2]
[367276050,1750727431951,-150.0,0.00020195,2]
[367276051,1750727431960,-150.0,0.00020195,2]
[367276052,1750727431969,-24.58851887,0.00020747,2]
[367276053,1750727431981,-377.5879686,0.00020747,2]
[367276054,1750727432035,-263.82351253,0.00020747,2]
[367276055,1750727432045,-150.0,0.00020755,4]
[367276056,1750727432054,-1000.0,0.00020784,2]
[367276057,1750727432064,-152.27,0.00020822,2]
[367276058,1750727432073,-166.74,0.00020879,2]
[367276059,1750727432083,-246.09,0.00020887,2]
[367276060,1750727432092,-315.0,0.00020897,2]
[367276061,1750727432102,-318.0,0.00020897,2]
[367276062,1750727432111,-275.83,0.00020899,2]
[367276063,1750727432120,-1569.21104583,0.00020899,2]
[367276091,1750727437807,-14367.27895417,0.00020899,2]
[367276092,1750727437817,-150.0,0.00020942,4]
[367276093,1750727437827,-151.0,0.00020992,2]
[367276094,1750727437836,-1622.0,0.00021016,2]
[367276095,1750727437845,-1423.0,0.00021068,2]
[367276096,1750727437855,-535.6364135,0.0002111,2]
[367276097,1750727437864,-535.6364135,0.0002111,2]
[367276098,1750727437874,-1144.0,0.00021173,2]
[367276099,1750727437883,-166.21,0.00021217,2]
[367276100,1750727437893,-760.0,0.00021277,2]
[367276101,1750727437902,-7142.856,0.00021314,2]
[367276102,1750727437912,-207.4,0.00021314,2]
[367276103,1750727437921,-150.0,0.00021316,4]
[367276104,1750727437931,-7407.141672,0.00021369,2]
[367276105,1750727437940,-7681.20591386,0.00021424,2]
[367276106,1750727437949,-1180.033241,0.00021478,4]
[367276107,1750727437959,-7965.41053268,0.00021479,2]
[367276108,1750727437968,-8260.13072239,0.00021534,2]
[367276109,1750727437978,-150.0,0.00021546,2]
[367276110,1750727437987,-8565.75555911,0.00021589,2]
[367276111,1750727437996,-164.0,0.000216,4]
[367276112,1750727438006,-164.0,0.000216,4]
[367276113,1750727438014,-164.0,0.000216,4]
[367276114,1750727438024,-164.0,0.000216,3]
[367276115,1750727438033,-164.0,0.000216,3]
[367276116,1750727438042,-164.0,0.000216,3]
[367276117,1750727438051,-164.0,0.000216,2]
[367276118,1750727438060,-170.69,0.000216,2]
[367276119,1750727438070,-8882.6885148,0.00021644,2]
[367276120,1750727438079,-150.0,0.0002169,4]
[367276121,1750727438089,-3103.30015535,0.00021699,2]
[367276122,1750727438098,-500.0,0.000217,7]
[367276123,1750727438108,-276.3932,0.00021717,2]
[367276124,1750727438117,-1100.0,0.000218,7]
[367276125,1750727438127,-1645.89812812,0.000218,2]
[367276127,1750727438136,-2405.33,0.000218,2]
[367276129,1750727438145,-1244.29194283,0.00021804,2]
[367276131,1750727438154,-5336.33921889,0.00021807,2]
[367276133,1750727438163,-4029.0237,0.00021817,2]
[367276135,1750727438173,-2500.0,0.00021817,2]
[367276137,1750727438183,-226.37811977,0.00021817,2]
[367276139,1750727438192,-151.0,0.00021817,2]
[367276141,1750727438202,-8768.53144409,0.00021817,2]
[367276143,1750727438211,-172.86312558,0.00021817,2]
[367276145,1750727438221,-1074.19299,0.00021817,2]
[367276147,1750727438230,-150.41843541,0.00021817,2]
[367276149,1750727438240,-2478.23282027,0.00021821,2]
[367276151,1750727438249,-1161.0,0.00021834,2]
[367276153,1750727438258,-856.0,0.00021834,2]
[367276155,1750727438267,-4097.0,0.00021834,2]
[367276157,1750727438277,-156.0,0.00021834,2]
[367276159,1750727438286,-7138.0,0.00021834,2]
[367276161,1750727438295,-1244.29194282,0.00021862,2]
[367276163,1750727438306,-1230.68645011,0.00021864,2]
[367276165,1750727438315,-218.0,0.00021868,2]
[367276167,1750727438325,-150.0,0.00021877,4]
[367276169,1750727438335,-2461.34,0.00021891,2]
[367276171,1750727438344,-1600.0,0.000219,7]
[367276173,1750727438353,-1303.0,0.000219,2]
[367276175,1750727438362,-151.0,0.00021904,2]
[367276177,1750727438372,-164.6778826,0.00021904,2]
[367276179,1750727438381,-152.72551967,0.00021904,2]
[367276181,1750727438391,-151.94193683,0.00021904,2]
[367276183,1750727438400,-152.8953565,0.00021904,2]
[367276185,1750727438409,-500.0,0.00021904,2]
[367276187,1750727438419,-500.0,0.00021904,2]
[367276189,1750727438428,-668.65185757,0.00021904,2]
[367276191,1750727438437,-500.0,0.00021904,2]
[367276193,1750727438448,-500.0,0.00021904,2]
[367276195,1750727438457,-500.0,0.00021904,2]
[367276197,1750727438467,-500.0,0.00021904,2]
[367276199,1750727438476,-500.0,0.00021904,2]
[367276201,1750727438485,-500.0,0.00021904,2]
[367276203,1750727438495,-500.0,0.00021904,2]
[367276205,1750727438504,-500.0,0.00021904,2]
[367276207,1750727438514,-500.0,0.00021904,2]
[367276209,1750727438524,-500.0,0.00021904,2]
[367276211,1750727438533,-500.0,0.00021904,2]
[367276213,1750727438543,-500.0,0.00021904,2]
[367276215,1750727438552,-1000.0,0.00021904,2]
[367276217,1750727438562,-500.0,0.00021904,2]
[367276219,1750727438571,-500.0,0.00021904,2]
[367276221,1750727438582,-1000.0,0.00021904,2]
[367276223,1750727438594,-500.0,0.00021904,2]
[367276225,1750727438604,-500.0,0.00021904,2]
[367276228,1750727438614,-1000.0,0.00021904,2]
[367276229,1750727438624,-500.0,0.00021904,2]
[367276231,1750727438633,-1000.0,0.00021904,2]
[367276233,1750727438644,-206.38989568,0.00021904,2]
[367276236,1750727438655,-1000.0,0.00021904,2]
[367276238,1750727438665,-635.41693619,0.00021904,2]
[367276240,1750727438674,-500.0,0.00021904,2]
[367276242,1750727438684,-300.0,0.00021904,2]
[367276244,1750727438693,-500.0,0.00021904,2]
[367276246,1750727438703,-200.0,0.00021904,2]
[367276248,1750727438712,-523.07903196,0.00021904,2]
[367276250,1750727438722,-151.0,0.00021904,2]
[367276252,1750727438731,-151.0,0.00021904,2]
[367276254,1750727438740,-151.0,0.00021904,2]
[367276256,1750727438750,-151.0,0.00021904,2]
[367276258,1750727438759,-151.0,0.00021904,2]
[367276260,1750727438768,-225.0,0.00021904,2]
[367276262,1750727438778,-171.54,0.00021907,2]
[367276264,1750727438786,-171.54,0.00021907,2]
[367276266,1750727438795,-171.54,0.00021907,2]
[367276268,1750727438805,-4768.38,0.00021907,2]
[367276269,1750727438814,-566.19,0.00021907,3]
[367276272,1750727438823,-8359.88809048,0.00021908,2]
[367276274,1750727438834,-500.0,0.00021916,2]
[367276275,1750727438843,-202.65800844,0.00021916,2]
[367276277,1750727438852,-490.0,0.00021917,2]
[367276280,1750727438862,-490.0,0.00021917,2]
[367276282,1750727438873,-490.0,0.00021917,2]
[367276284,1750727438882,-490.0,0.00021917,2]
[367276286,1750727438891,-490.0,0.00021917,2]
[367276288,1750727438900,-490.0,0.00021917,2]
[367276290,1750727438909,-490.0,0.00021917,2]
[367276292,1750727438918,-636.84483719,0.00021917,2]
[367276294,1750727438928,-490.0,0.00021917,2]
[367276296,1750727438937,-440.0,0.00021917,2]
[367276298,1750727438946,-490.0,0.00021917,2]
[367276300,1750727438955,-490.0,0.00021917,2]
[367276302,1750727438964,-490.0,0.00021917,2]
[367276304,1750727438974,-490.0,0.00021917,2]
[367276306,1750727438983,-490.0,0.00021917,2]
[367276308,1750727438993,-490.0,0.00021917,2]
[367276310,1750727439002,-248.00833422,0.00021917,2]
[367276312,1750727439011,-490.0,0.00021917,2]
[367276314,1750727439020,-356.87215035,0.00021917,2]
[367276316,1750727439029,-490.0,0.00021917,2]
[367276318,1750727439039,-490.0,0.00021917,2]
[367276320,1750727439048,-490.0,0.00021917,2]
[367276322,1750727439057,-490.0,0.00021917,2]
[367276324,1750727439067,-490.0,0.00021917,2]
[367276326,1750727439076,-500.0,0.00021917,2]
[367276328,1750727439085,-500.0,0.00021917,2]
[367276330,1750727439094,-490.0,0.00021917,2]
[367276332,1750727439104,-490.0,0.00021917,2]
[367276334,1750727439114,-1000.0,0.00021917,2]
[367276336,1750727439123,-490.0,0.00021917,2]
[367276338,1750727439132,-280.0,0.00021917,2]
[367276340,1750727439141,-490.0,0.00021917,2]
[367276342,1750727439152,-490.0,0.00021917,2]
[367276344,1750727439161,-206.92276457,0.00021917,2]
[367276346,1750727439171,-490.0,0.00021917,2]
[367276348,1750727439181,-490.0,0.00021917,2]
[367276350,1750727439190,-490.52367389,0.00021917,2]
[367276352,1750727439199,-490.0,0.00021917,2]
[367276354,1750727439209,-151.0,0.00021917,2]
[367276356,1750727439218,-151.0,0.00021917,2]
[367276358,1750727439227,-151.0,0.00021917,2]
[367276360,1750727439237,-267.757192,0.00021917,2]
[367276362,1750727439246,-490.0,0.00021917,2]
[367276364,1750727439255,-490.0,0.00021917,2]
[367276366,1750727439265,-490.0,0.00021917,2]
[367276368,1750727439274,-490.0,0.00021917,2]
[367276370,1750727439283,-490.0,0.00021917,2]
[367276372,1750727439292,-490.0,0.00021917,2]
[367276374,1750727439302,-151.0,0.00021917,2]
[367276376,1750727439312,-151.0,0.00021917,2]
[367276378,1750727439321,-151.0,0.00021917,2]
[367276380,1750727439330,-151.0,0.00021917,2]
[367276382,1750727439339,-151.0,0.00021917,2]
[367276384,1750727439349,-500.0,0.00021917,2]
[367276386,1750727439358,-500.0,0.00021917,2]